{"text_format":"3","workbook":"xlsx","n_sheets":4,"sheets":["Rezime","Ukupno","Prihod","Izdaci"],"not_rendered":{"defined_names":13},"read":"whole","date_system":"1900"}

{"sheet":"Rezime","index":0,"n_rows":6,"n_cols":3,"rows_kept":6,"merged":[[0,1,0,2],[1,1,1,2]]}
[null,"PORODIČNI MESEČNI BUDŽET"]
[null,"REZIME"]
[null,"Saldo","Iznos"]
[null,"Predviđeni saldo (predviđeni prihod minus troškovi)",{"$f":"PredviđeniPrihod-PredviđeniTroškovi","v":{"v":1114,"d":"1,114 RSD"}}]
[null,"Stvarni saldo (stvarni prihod minus troškovi)",{"$f":"StvarniPrihod-StvarniTroškovi","v":{"v":997,"d":"997 RSD"}}]
[null,"Razlika (stvarni minus predviđeni)",{"$f":"StvarniSaldo-PredviđeniSaldo","v":{"v":-117,"d":"-117 RSD"}}]

{"sheet":"Ukupno","index":1,"n_rows":6,"n_cols":3,"rows_kept":6,"merged":[[0,1,0,2],[1,1,1,2]]}
[null,{"$f":"Naslov_RadneSveske","v":"PORODIČNI MESEČNI BUDŽET"}]
[null,"Ukupno"]
[null,"Ukupno","Iznos"]
[null,"Ukupan predviđeni trošak",{"$f":"PredviđeniTroškovi","v":{"v":4486,"d":"4,486 RSD"}}]
[null,"Ukupan stvarni trošak",{"$f":"StvarniTroškovi","v":{"v":4603,"d":"4,603 RSD"}}]
[null,"Ukupna razlika",{"$f":"C4-C5","v":{"v":-117,"d":"-117 RSD"}}]

{"sheet":"Prihod","index":2,"n_rows":7,"n_cols":5,"rows_kept":7,"merged":[[0,1,0,4],[1,1,1,4]]}
[null,{"$f":"Naslov_RadneSveske","v":"PORODIČNI MESEČNI BUDŽET"}]
[null,"PRIHOD"]
[null,"Predviđeni prihod","Predviđeno","Stvarno","Razlika"]
[null,"Prihod 1",{"v":4000,"d":"4,000.00 RSD"},{"v":4000,"d":"4,000.00 RSD"},{"$f":"TabelaPrihoda[[#This Row],[Predviđeno]]-TabelaPrihoda[[#This Row],[Stvarno]]","v":{"v":0,"d":"0.00 RSD"}}]
[null,"Prihod 2",{"v":1300,"d":"1,300.00 RSD"},{"v":1300,"d":"1,300.00 RSD"},{"$f":"TabelaPrihoda[[#This Row],[Predviđeno]]-TabelaPrihoda[[#This Row],[Stvarno]]","v":{"v":0,"d":"0.00 RSD"}}]
[null,"Dodatni prihod",{"v":300,"d":"300.00 RSD"},{"v":300,"d":"300.00 RSD"},{"$f":"TabelaPrihoda[[#This Row],[Predviđeno]]-TabelaPrihoda[[#This Row],[Stvarno]]","v":{"v":0,"d":"0.00 RSD"}}]
[null,"Ukupan mesečni prihod",{"$f":"SUBTOTAL(109,TabelaPrihoda[Predviđeno])","v":{"v":5600,"d":"5,600.00 RSD"}},{"$f":"SUBTOTAL(109,TabelaPrihoda[Stvarno])","v":{"v":5600,"d":"5,600.00 RSD"}},{"$f":"SUBTOTAL(109,TabelaPrihoda[Razlika])","v":{"v":0,"d":"0.00 RSD"}}]

{"sheet":"Izdaci","index":3,"n_rows":80,"n_cols":6,"rows_kept":80,"merged":[[0,1,0,5],[1,1,1,5],[2,1,2,5]]}
[null,{"$f":"Naslov_RadneSveske","v":"PORODIČNI MESEČNI BUDŽET"}]
[null,"IZDACI"]
[null,"Segmentator za filtriranje tabele „Izdaci“ po kategoriji nalazi se u ovoj ćeliji."]
[null,"Kategorija","Potkategorija","Predviđeno","Stvarno","Razlika"]
[null,"Iznajmljivanje stana","Hipoteka ili izdavanje",{"v":1000,"d":"1,000.00 RSD"},{"v":1000,"d":"1,000.00 RSD"},{"$f":"TabelaIzdaci[[#This Row],[Predviđeno]]-TabelaIzdaci[[#This Row],[Stvarno]]","v":{"v":0,"d":"0.00 RSD"}}]
[null,"Iznajmljivanje stana","Druga hipoteka ili izdavanje",{"v":0,"d":"0.00 RSD"},{"v":0,"d":"0.00 RSD"},{"$f":"TabelaIzdaci[[#This Row],[Predviđeno]]-TabelaIzdaci[[#This Row],[Stvarno]]","v":{"v":0,"d":"0.00 RSD"}}]
[null,"Iznajmljivanje stana","Telefon",{"v":54,"d":"54.00 RSD"},{"v":100,"d":"100.00 RSD"},{"$f":"TabelaIzdaci[[#This Row],[Predviđeno]]-TabelaIzdaci[[#This Row],[Stvarno]]","v":{"v":-46,"d":"-46.00 RSD"}}]
[null,"Iznajmljivanje stana","Struja",{"v":44,"d":"44.00 RSD"},{"v":56,"d":"56.00 RSD"},{"$f":"TabelaIzdaci[[#This Row],[Predviđeno]]-TabelaIzdaci[[#This Row],[Stvarno]]","v":{"v":-12,"d":"-12.00 RSD"}}]
[null,"Iznajmljivanje stana","Gas",{"v":22,"d":"22.00 RSD"},{"v":28,"d":"28.00 RSD"},{"$f":"TabelaIzdaci[[#This Row],[Predviđeno]]-TabelaIzdaci[[#This Row],[Stvarno]]","v":{"v":-6,"d":"-6.00 RSD"}}]
[null,"Iznajmljivanje stana","Voda i kanalizacija",{"v":8,"d":"8.00 RSD"},{"v":8,"d":"8.00 RSD"},{"$f":"TabelaIzdaci[[#This Row],[Predviđeno]]-TabelaIzdaci[[#This Row],[Stvarno]]","v":{"v":0,"d":"0.00 RSD"}}]
[null,"Iznajmljivanje stana","Kablovska televizija",{"v":34,"d":"34.00 RSD"},{"v":34,"d":"34.00 RSD"},{"$f":"TabelaIzdaci[[#This Row],[Predviđeno]]-TabelaIzdaci[[#This Row],[Stvarno]]","v":{"v":0,"d":"0.00 RSD"}}]
[null,"Iznajmljivanje stana","Uklanjanje otpada",{"v":10,"d":"10.00 RSD"},{"v":10,"d":"10.00 RSD"},{"$f":"TabelaIzdaci[[#This Row],[Predviđeno]]-TabelaIzdaci[[#This Row],[Stvarno]]","v":{"v":0,"d":"0.00 RSD"}}]
[null,"Iznajmljivanje stana","Održavanje ili popravke",{"v":23,"d":"23.00 RSD"},{"v":0,"d":"0.00 RSD"},{"$f":"TabelaIzdaci[[#This Row],[Predviđeno]]-TabelaIzdaci[[#This Row],[Stvarno]]","v":{"v":23,"d":"23.00 RSD"}}]
[null,"Iznajmljivanje stana","Pribor",{"v":0,"d":"0.00 RSD"},{"v":0,"d":"0.00 RSD"},{"$f":"TabelaIzdaci[[#This Row],[Predviđeno]]-TabelaIzdaci[[#This Row],[Stvarno]]","v":{"v":0,"d":"0.00 RSD"}}]
[null,"Iznajmljivanje stana","Drugo",{"v":0,"d":"0.00 RSD"},{"v":0,"d":"0.00 RSD"},{"$f":"TabelaIzdaci[[#This Row],[Predviđeno]]-TabelaIzdaci[[#This Row],[Stvarno]]","v":{"v":0,"d":"0.00 RSD"}}]
[null,"Prevoz","Plaćanje 1. vozila",{"v":16,"d":"16.00 RSD"},{"v":66,"d":"66.00 RSD"},{"$f":"TabelaIzdaci[[#This Row],[Predviđeno]]-TabelaIzdaci[[#This Row],[Stvarno]]","v":{"v":-50,"d":"-50.00 RSD"}}]
[null,"Prevoz","Plaćanje 2. vozila",{"v":35,"d":"35.00 RSD"},{"v":42,"d":"42.00 RSD"},{"$f":"TabelaIzdaci[[#This Row],[Predviđeno]]-TabelaIzdaci[[#This Row],[Stvarno]]","v":{"v":-7,"d":"-7.00 RSD"}}]
[null,"Prevoz","Naknada za autobus/taksi",{"v":1,"d":"1.00 RSD"},{"v":62,"d":"62.00 RSD"},{"$f":"TabelaIzdaci[[#This Row],[Predviđeno]]-TabelaIzdaci[[#This Row],[Stvarno]]","v":{"v":-61,"d":"-61.00 RSD"}}]
[null,"Prevoz","Osiguranje",{"v":91,"d":"91.00 RSD"},{"v":27,"d":"27.00 RSD"},{"$f":"TabelaIzdaci[[#This Row],[Predviđeno]]-TabelaIzdaci[[#This Row],[Stvarno]]","v":{"v":64,"d":"64.00 RSD"}}]
[null,"Prevoz","Vozačka dozvola",{"v":80,"d":"80.00 RSD"},{"v":89,"d":"89.00 RSD"},{"$f":"TabelaIzdaci[[#This Row],[Predviđeno]]-TabelaIzdaci[[#This Row],[Stvarno]]","v":{"v":-9,"d":"-9.00 RSD"}}]
[null,"Prevoz","Gorivo",{"v":18,"d":"18.00 RSD"},{"v":93,"d":"93.00 RSD"},{"$f":"TabelaIzdaci[[#This Row],[Predviđeno]]-TabelaIzdaci[[#This Row],[Stvarno]]","v":{"v":-75,"d":"-75.00 RSD"}}]
[null,"Prevoz","Održavanje",{"v":34,"d":"34.00 RSD"},{"v":37,"d":"37.00 RSD"},{"$f":"TabelaIzdaci[[#This Row],[Predviđeno]]-TabelaIzdaci[[#This Row],[Stvarno]]","v":{"v":-3,"d":"-3.00 RSD"}}]
[null,"Prevoz","Drugo",{"v":83,"d":"83.00 RSD"},{"v":61,"d":"61.00 RSD"},{"$f":"TabelaIzdaci[[#This Row],[Predviđeno]]-TabelaIzdaci[[#This Row],[Stvarno]]","v":{"v":22,"d":"22.00 RSD"}}]
[null,"Osiguranje","Kuća",{"v":48,"d":"48.00 RSD"},{"v":63,"d":"63.00 RSD"},{"$f":"TabelaIzdaci[[#This Row],[Predviđeno]]-TabelaIzdaci[[#This Row],[Stvarno]]","v":{"v":-15,"d":"-15.00 RSD"}}]
[null,"Osiguranje","Zdravstveno",{"v":21,"d":"21.00 RSD"},{"v":44,"d":"44.00 RSD"},{"$f":"TabelaIzdaci[[#This Row],[Predviđeno]]-TabelaIzdaci[[#This Row],[Stvarno]]","v":{"v":-23,"d":"-23.00 RSD"}}]
[null,"Osiguranje","Životno",{"v":35,"d":"35.00 RSD"},{"v":65,"d":"65.00 RSD"},{"$f":"TabelaIzdaci[[#This Row],[Predviđeno]]-TabelaIzdaci[[#This Row],[Stvarno]]","v":{"v":-30,"d":"-30.00 RSD"}}]
[null,"Osiguranje","Drugo",{"v":14,"d":"14.00 RSD"},{"v":75,"d":"75.00 RSD"},{"$f":"TabelaIzdaci[[#This Row],[Predviđeno]]-TabelaIzdaci[[#This Row],[Stvarno]]","v":{"v":-61,"d":"-61.00 RSD"}}]
[null,"Hrana","Namirnice",{"v":79,"d":"79.00 RSD"},{"v":0,"d":"0.00 RSD"},{"$f":"TabelaIzdaci[[#This Row],[Predviđeno]]-TabelaIzdaci[[#This Row],[Stvarno]]","v":{"v":79,"d":"79.00 RSD"}}]
[null,"Hrana","Restorani",{"v":56,"d":"56.00 RSD"},{"v":50,"d":"50.00 RSD"},{"$f":"TabelaIzdaci[[#This Row],[Predviđeno]]-TabelaIzdaci[[#This Row],[Stvarno]]","v":{"v":6,"d":"6.00 RSD"}}]
[null,"Hrana","Drugo",{"v":96,"d":"96.00 RSD"},{"v":23,"d":"23.00 RSD"},{"$f":"TabelaIzdaci[[#This Row],[Predviđeno]]-TabelaIzdaci[[#This Row],[Stvarno]]","v":{"v":73,"d":"73.00 RSD"}}]
[null,"Deca","Zdravstvo",{"v":90,"d":"90.00 RSD"},{"v":90,"d":"90.00 RSD"},{"$f":"TabelaIzdaci[[#This Row],[Predviđeno]]-TabelaIzdaci[[#This Row],[Stvarno]]","v":{"v":0,"d":"0.00 RSD"}}]
[null,"Deca","Odeća",{"v":33,"d":"33.00 RSD"},{"v":30,"d":"30.00 RSD"},{"$f":"TabelaIzdaci[[#This Row],[Predviđeno]]-TabelaIzdaci[[#This Row],[Stvarno]]","v":{"v":3,"d":"3.00 RSD"}}]
[null,"Deca","Školovanje",{"v":86,"d":"86.00 RSD"},{"v":64,"d":"64.00 RSD"},{"$f":"TabelaIzdaci[[#This Row],[Predviđeno]]-TabelaIzdaci[[#This Row],[Stvarno]]","v":{"v":22,"d":"22.00 RSD"}}]
[null,"Deca","Školski pribor",{"v":76,"d":"76.00 RSD"},{"v":2,"d":"2.00 RSD"},{"$f":"TabelaIzdaci[[#This Row],[Predviđeno]]-TabelaIzdaci[[#This Row],[Stvarno]]","v":{"v":74,"d":"74.00 RSD"}}]
[null,"Deca","Organizacioni dugovi ili naknade",{"v":60,"d":"60.00 RSD"},{"v":90,"d":"90.00 RSD"},{"$f":"TabelaIzdaci[[#This Row],[Predviđeno]]-TabelaIzdaci[[#This Row],[Stvarno]]","v":{"v":-30,"d":"-30.00 RSD"}}]
[null,"Deca","Novac za ručak",{"v":37,"d":"37.00 RSD"},{"v":60,"d":"60.00 RSD"},{"$f":"TabelaIzdaci[[#This Row],[Predviđeno]]-TabelaIzdaci[[#This Row],[Stvarno]]","v":{"v":-23,"d":"-23.00 RSD"}}]
[null,"Deca","Nega deteta",{"v":22,"d":"22.00 RSD"},{"v":70,"d":"70.00 RSD"},{"$f":"TabelaIzdaci[[#This Row],[Predviđeno]]-TabelaIzdaci[[#This Row],[Stvarno]]","v":{"v":-48,"d":"-48.00 RSD"}}]
[null,"Deca","Igračke/igre",{"v":80,"d":"80.00 RSD"},{"v":21,"d":"21.00 RSD"},{"$f":"TabelaIzdaci[[#This Row],[Predviđeno]]-TabelaIzdaci[[#This Row],[Stvarno]]","v":{"v":59,"d":"59.00 RSD"}}]
[null,"Deca","Drugo",{"v":65,"d":"65.00 RSD"},{"v":20,"d":"20.00 RSD"},{"$f":"TabelaIzdaci[[#This Row],[Predviđeno]]-TabelaIzdaci[[#This Row],[Stvarno]]","v":{"v":45,"d":"45.00 RSD"}}]
[null,"Ljubimci","Hrana",{"v":37,"d":"37.00 RSD"},{"v":34,"d":"34.00 RSD"},{"$f":"TabelaIzdaci[[#This Row],[Predviđeno]]-TabelaIzdaci[[#This Row],[Stvarno]]","v":{"v":3,"d":"3.00 RSD"}}]
[null,"Ljubimci","Zdravstvo",{"v":74,"d":"74.00 RSD"},{"v":86,"d":"86.00 RSD"},{"$f":"TabelaIzdaci[[#This Row],[Predviđeno]]-TabelaIzdaci[[#This Row],[Stvarno]]","v":{"v":-12,"d":"-12.00 RSD"}}]
[null,"Ljubimci","Doterivanje",{"v":80,"d":"80.00 RSD"},{"v":92,"d":"92.00 RSD"},{"$f":"TabelaIzdaci[[#This Row],[Predviđeno]]-TabelaIzdaci[[#This Row],[Stvarno]]","v":{"v":-12,"d":"-12.00 RSD"}}]
[null,"Ljubimci","Igračke",{"v":61,"d":"61.00 RSD"},{"v":22,"d":"22.00 RSD"},{"$f":"TabelaIzdaci[[#This Row],[Predviđeno]]-TabelaIzdaci[[#This Row],[Stvarno]]","v":{"v":39,"d":"39.00 RSD"}}]
[null,"Ljubimci","Drugo",{"v":83,"d":"83.00 RSD"},{"v":51,"d":"51.00 RSD"},{"$f":"TabelaIzdaci[[#This Row],[Predviđeno]]-TabelaIzdaci[[#This Row],[Stvarno]]","v":{"v":32,"d":"32.00 RSD"}}]
[null,"Lična nega","Zdravstvo",{"v":28,"d":"28.00 RSD"},{"v":10,"d":"10.00 RSD"},{"$f":"TabelaIzdaci[[#This Row],[Predviđeno]]-TabelaIzdaci[[#This Row],[Stvarno]]","v":{"v":18,"d":"18.00 RSD"}}]
[null,"Lična nega","Kosa/nokti",{"v":25,"d":"25.00 RSD"},{"v":81,"d":"81.00 RSD"},{"$f":"TabelaIzdaci[[#This Row],[Predviđeno]]-TabelaIzdaci[[#This Row],[Stvarno]]","v":{"v":-56,"d":"-56.00 RSD"}}]
[null,"Lična nega","Odeća",{"v":59,"d":"59.00 RSD"},{"v":72,"d":"72.00 RSD"},{"$f":"TabelaIzdaci[[#This Row],[Predviđeno]]-TabelaIzdaci[[#This Row],[Stvarno]]","v":{"v":-13,"d":"-13.00 RSD"}}]
[null,"Lična nega","Hemijsko čišćenje",{"v":89,"d":"89.00 RSD"},{"v":90,"d":"90.00 RSD"},{"$f":"TabelaIzdaci[[#This Row],[Predviđeno]]-TabelaIzdaci[[#This Row],[Stvarno]]","v":{"v":-1,"d":"-1.00 RSD"}}]
[null,"Lična nega","Teretana",{"v":78,"d":"78.00 RSD"},{"v":48,"d":"48.00 RSD"},{"$f":"TabelaIzdaci[[#This Row],[Predviđeno]]-TabelaIzdaci[[#This Row],[Stvarno]]","v":{"v":30,"d":"30.00 RSD"}}]
[null,"Lična nega","Organizacioni dugovi ili naknade",{"v":6,"d":"6.00 RSD"},{"v":73,"d":"73.00 RSD"},{"$f":"TabelaIzdaci[[#This Row],[Predviđeno]]-TabelaIzdaci[[#This Row],[Stvarno]]","v":{"v":-67,"d":"-67.00 RSD"}}]
[null,"Lična nega","Drugo",{"v":80,"d":"80.00 RSD"},{"v":66,"d":"66.00 RSD"},{"$f":"TabelaIzdaci[[#This Row],[Predviđeno]]-TabelaIzdaci[[#This Row],[Stvarno]]","v":{"v":14,"d":"14.00 RSD"}}]
[null,"Zabava","Video/DVD",{"v":11,"d":"11.00 RSD"},{"v":29,"d":"29.00 RSD"},{"$f":"TabelaIzdaci[[#This Row],[Predviđeno]]-TabelaIzdaci[[#This Row],[Stvarno]]","v":{"v":-18,"d":"-18.00 RSD"}}]
[null,"Zabava","CD-ovi",{"v":77,"d":"77.00 RSD"},{"v":32,"d":"32.00 RSD"},{"$f":"TabelaIzdaci[[#This Row],[Predviđeno]]-TabelaIzdaci[[#This Row],[Stvarno]]","v":{"v":45,"d":"45.00 RSD"}}]
[null,"Zabava","Filmovi",{"v":71,"d":"71.00 RSD"},{"v":43,"d":"43.00 RSD"},{"$f":"TabelaIzdaci[[#This Row],[Predviđeno]]-TabelaIzdaci[[#This Row],[Stvarno]]","v":{"v":28,"d":"28.00 RSD"}}]
[null,"Zabava","Koncerti",{"v":64,"d":"64.00 RSD"},{"v":21,"d":"21.00 RSD"},{"$f":"TabelaIzdaci[[#This Row],[Predviđeno]]-TabelaIzdaci[[#This Row],[Stvarno]]","v":{"v":43,"d":"43.00 RSD"}}]
[null,"Zabava","Sportski događaji",{"v":47,"d":"47.00 RSD"},{"v":57,"d":"57.00 RSD"},{"$f":"TabelaIzdaci[[#This Row],[Predviđeno]]-TabelaIzdaci[[#This Row],[Stvarno]]","v":{"v":-10,"d":"-10.00 RSD"}}]
[null,"Zabava","Pozorište",{"v":28,"d":"28.00 RSD"},{"v":1,"d":"1.00 RSD"},{"$f":"TabelaIzdaci[[#This Row],[Predviđeno]]-TabelaIzdaci[[#This Row],[Stvarno]]","v":{"v":27,"d":"27.00 RSD"}}]
[null,"Zabava","Drugo",{"v":13,"d":"13.00 RSD"},{"v":42,"d":"42.00 RSD"},{"$f":"TabelaIzdaci[[#This Row],[Predviđeno]]-TabelaIzdaci[[#This Row],[Stvarno]]","v":{"v":-29,"d":"-29.00 RSD"}}]
[null,"Zajmovi","Lično",{"v":65,"d":"65.00 RSD"},{"v":6,"d":"6.00 RSD"},{"$f":"TabelaIzdaci[[#This Row],[Predviđeno]]-TabelaIzdaci[[#This Row],[Stvarno]]","v":{"v":59,"d":"59.00 RSD"}}]
[null,"Zajmovi","Studentski",{"v":100,"d":"100.00 RSD"},{"v":36,"d":"36.00 RSD"},{"$f":"TabelaIzdaci[[#This Row],[Predviđeno]]-TabelaIzdaci[[#This Row],[Stvarno]]","v":{"v":64,"d":"64.00 RSD"}}]
[null,"Zajmovi","Kreditna kartica",{"v":29,"d":"29.00 RSD"},{"v":69,"d":"69.00 RSD"},{"$f":"TabelaIzdaci[[#This Row],[Predviđeno]]-TabelaIzdaci[[#This Row],[Stvarno]]","v":{"v":-40,"d":"-40.00 RSD"}}]
[null,"Zajmovi","Kreditna kartica",{"v":64,"d":"64.00 RSD"},{"v":3,"d":"3.00 RSD"},{"$f":"TabelaIzdaci[[#This Row],[Predviđeno]]-TabelaIzdaci[[#This Row],[Stvarno]]","v":{"v":61,"d":"61.00 RSD"}}]
[null,"Zajmovi","Kreditna kartica",{"v":34,"d":"34.00 RSD"},{"v":35,"d":"35.00 RSD"},{"$f":"TabelaIzdaci[[#This Row],[Predviđeno]]-TabelaIzdaci[[#This Row],[Stvarno]]","v":{"v":-1,"d":"-1.00 RSD"}}]
[null,"Zajmovi","Drugo",{"v":38,"d":"38.00 RSD"},{"v":52,"d":"52.00 RSD"},{"$f":"TabelaIzdaci[[#This Row],[Predviđeno]]-TabelaIzdaci[[#This Row],[Stvarno]]","v":{"v":-14,"d":"-14.00 RSD"}}]
[null,"Porezi","Savezni",{"v":84,"d":"84.00 RSD"},{"v":36,"d":"36.00 RSD"},{"$f":"TabelaIzdaci[[#This Row],[Predviđeno]]-TabelaIzdaci[[#This Row],[Stvarno]]","v":{"v":48,"d":"48.00 RSD"}}]
[null,"Porezi","Državni",{"v":2,"d":"2.00 RSD"},{"v":83,"d":"83.00 RSD"},{"$f":"TabelaIzdaci[[#This Row],[Predviđeno]]-TabelaIzdaci[[#This Row],[Stvarno]]","v":{"v":-81,"d":"-81.00 RSD"}}]
[null,"Porezi","Lokalni",{"v":40,"d":"40.00 RSD"},{"v":20,"d":"20.00 RSD"},{"$f":"TabelaIzdaci[[#This Row],[Predviđeno]]-TabelaIzdaci[[#This Row],[Stvarno]]","v":{"v":20,"d":"20.00 RSD"}}]
[null,"Porezi","Drugo",{"v":35,"d":"35.00 RSD"},{"v":72,"d":"72.00 RSD"},{"$f":"TabelaIzdaci[[#This Row],[Predviđeno]]-TabelaIzdaci[[#This Row],[Stvarno]]","v":{"v":-37,"d":"-37.00 RSD"}}]
[null,"Štednja ili ulaganja","Penzioni račun",{"v":34,"d":"34.00 RSD"},{"v":20,"d":"20.00 RSD"},{"$f":"TabelaIzdaci[[#This Row],[Predviđeno]]-TabelaIzdaci[[#This Row],[Stvarno]]","v":{"v":14,"d":"14.00 RSD"}}]
[null,"Štednja ili ulaganja","Ulagački račun",{"v":68,"d":"68.00 RSD"},{"v":98,"d":"98.00 RSD"},{"$f":"TabelaIzdaci[[#This Row],[Predviđeno]]-TabelaIzdaci[[#This Row],[Stvarno]]","v":{"v":-30,"d":"-30.00 RSD"}}]
[null,"Štednja ili ulaganja","Fakultet",{"v":89,"d":"89.00 RSD"},{"v":68,"d":"68.00 RSD"},{"$f":"TabelaIzdaci[[#This Row],[Predviđeno]]-TabelaIzdaci[[#This Row],[Stvarno]]","v":{"v":21,"d":"21.00 RSD"}}]
[null,"Štednja ili ulaganja","Drugo",{"v":82,"d":"82.00 RSD"},{"v":26,"d":"26.00 RSD"},{"$f":"TabelaIzdaci[[#This Row],[Predviđeno]]-TabelaIzdaci[[#This Row],[Stvarno]]","v":{"v":56,"d":"56.00 RSD"}}]
[null,"Pokloni i donacije","Dobrotvorni prilog 1",{"v":41,"d":"41.00 RSD"},{"v":85,"d":"85.00 RSD"},{"$f":"TabelaIzdaci[[#This Row],[Predviđeno]]-TabelaIzdaci[[#This Row],[Stvarno]]","v":{"v":-44,"d":"-44.00 RSD"}}]
[null,"Pokloni i donacije","Dobrotvorni prilog 2",{"v":0,"d":"0.00 RSD"},{"v":69,"d":"69.00 RSD"},{"$f":"TabelaIzdaci[[#This Row],[Predviđeno]]-TabelaIzdaci[[#This Row],[Stvarno]]","v":{"v":-69,"d":"-69.00 RSD"}}]
[null,"Pokloni i donacije","Dobrotvorni prilog 3",{"v":2,"d":"2.00 RSD"},{"v":57,"d":"57.00 RSD"},{"$f":"TabelaIzdaci[[#This Row],[Predviđeno]]-TabelaIzdaci[[#This Row],[Stvarno]]","v":{"v":-55,"d":"-55.00 RSD"}}]
[null,"Pravni aspekti","Advokat",{"v":7,"d":"7.00 RSD"},{"v":98,"d":"98.00 RSD"},{"$f":"TabelaIzdaci[[#This Row],[Predviđeno]]-TabelaIzdaci[[#This Row],[Stvarno]]","v":{"v":-91,"d":"-91.00 RSD"}}]
[null,"Pravni aspekti","Alimentacija",{"v":39,"d":"39.00 RSD"},{"v":85,"d":"85.00 RSD"},{"$f":"TabelaIzdaci[[#This Row],[Predviđeno]]-TabelaIzdaci[[#This Row],[Stvarno]]","v":{"v":-46,"d":"-46.00 RSD"}}]
[null,"Pravni aspekti","Isplate zasnovane na zapleni ili sudskoj odluci",{"v":78,"d":"78.00 RSD"},{"v":84,"d":"84.00 RSD"},{"$f":"TabelaIzdaci[[#This Row],[Predviđeno]]-TabelaIzdaci[[#This Row],[Stvarno]]","v":{"v":-6,"d":"-6.00 RSD"}}]
[null,"Pravni aspekti","Drugo",{"v":93,"d":"93.00 RSD"},{"v":71,"d":"71.00 RSD"},{"$f":"TabelaIzdaci[[#This Row],[Predviđeno]]-TabelaIzdaci[[#This Row],[Stvarno]]","v":{"v":22,"d":"22.00 RSD"}}]
[null,"Zbir",{"$nulls":3},{"$f":"SUBTOTAL(109,TabelaIzdaci[Razlika])","v":{"v":-117,"d":"-117.00 RSD"}}]